Workbook

Sheet Sheet1
A1: 附件1
A2: 贵阳市民政局2019年事业单位公开招聘工作人员管理岗位面试成绩、总成绩及 进入体检环节人员名单
A3: 姓名 | B3: 考号 | C3: 报考单位及代码 | D3: 报考岗位及代码 | E3: 笔试成绩 | H3: 面试 | J3: 笔试、面试总成绩 | K3: 排名 | L3: 是否进入体检（1：1）
E4: 卷面成绩（300分） | F4: 百分制成绩（保留两位小数） | G4: 折算后成绩（60%） | H4: 百分制成绩 | I4: 折算后成绩（40%）
A5: 熊跃 | B5: 1152019200310 | C5: 017市社会福利院 | D5: 01管理岗位 | E5: 198 | F5: =E5/3 -> 66.00 | G5: =F5*0.6 -> 39.60 | H5: 86.00 | I5: =H5*0.4 -> 34.40 | J5: =G5+I5 -> 74.00 | K5: 1 | L5: 进入体检
A6: 黄雪丹 | B6: 1152011202206 | C6: 017市社会福利院 | D6: 01管理岗位 | E6: 198.5 | F6: =E6/3 -> 66.17 | G6: =F6*0.6 -> 39.70 | H6: 80.40 | I6: =H6*0.4 -> 32.16 | J6: =G6+I6 -> 71.86 | K6: 2 | L6: 进入体检
A7: 华丹妮 | B7: 1152018602309 | C7: 017市社会福利院 | D7: 01管理岗位 | E7: 197.5 | F7: 65.83 | G7: 39.50 | H7: 79.00 | I7: 31.60 | J7: 71.10 | K7: 3
A8: 杨兰君 | B8: 1152016102420 | C8: 017市社会福利院 | D8: 01管理岗位 | E8: 193.5 | F8: =E8/3 -> 64.50 | G8: =F8*0.6 -> 38.70 | H8: 80.00 | I8: =H8*0.4 -> 32.00 | J8: =G8+I8 -> 70.70 | K8: 4
A9: 墙仕碧 | B9: 1152019906417 | C9: 017市社会福利院 | D9: 01管理岗位 | E9: 194 | F9: 64.67 | G9: 38.80 | H9: 78.60 | I9: 31.44 | J9: 70.24 | K9: 5
A10: 郑亚义 | B10: 1152016201812 | C10: 019市儿童福利院 | D10: 01管理岗位 | E10: 174 | F10: =E10/3 -> 58.00 | G10: =F10*0.6 -> 34.80 | H10: 81.40 | I10: =H10*0.4 -> 32.56 | J10: =G10+I10 -> 67.36 | K10: 1 | L10: 进入体检
A11: 龚桃林 | B11: 1152016103721 | C11: 019市儿童福利院 | D11: 01管理岗位 | E11: 174.5 | F11: 58.17 | G11: 34.90 | H11: 77.80 | I11: 31.12 | J11: 66.02 | K11: 2
A12: 梁锦绣 | B12: 1152018204007 | C12: 019市儿童福利院 | D12: 01管理岗位 | E12: 170 | F12: 56.67 | G12: 34.00 | H12: 缺考 | J12: 34.00
A13: 刁金玲 | B13: 1152019502420 | C13: 020市精神病医院 | D13: 01管理岗位 | E13: 199 | F13: 66.33 | G13: 39.80 | H13: 86.00 | I13: 34.40 | J13: 74.20 | K13: 1 | L13: 进入体检
A14: 陈晓梅 | B14: 1152019504322 | C14: 020市精神病医院 | D14: 01管理岗位 | E14: 190 | F14: =E14/3 -> 63.33 | G14: =F14*0.6 -> 38.00 | H14: 88.40 | I14: =H14*0.4 -> 35.36 | J14: =G14+I14 -> 73.36 | K14: 2
A15: 官丹 | B15: 1152019201416 | C15: 020市精神病医院 | D15: 01管理岗位 | E15: 192 | F15: 64.00 | G15: 38.40 | H15: 78.60 | I15: 31.44 | J15: 69.84 | K15: 3
A16: 李鹤立 | B16: 1152012901204 | C16: 021市殡葬管理所 | D16: 01管理岗位 | E16: 206 | F16: 68.67 | G16: 41.20 | H16: 83.80 | I16: 33.52 | J16: 74.72 | K16: 1 | L16: 进入体检
A17: 霍人晖 | B17: 1152019001312 | C17: 021市殡葬管理所 | D17: 01管理岗位 | E17: 197 | F17: 65.67 | G17: 39.40 | H17: 88.00 | I17: 35.20 | J17: =G17+I17 -> 74.60 | K17: 2
A18: 唐德浩 | B18: 1152016102908 | C18: 021市殡葬管理所 | D18: 01管理岗位 | E18: 197.5 | F18: 65.83 | G18: 39.50 | H18: 83.00 | I18: 33.20 | J18: 72.70 | K18: 3
A19: 曾倩 | B19: 1152018901015 | C19: 021市殡葬管理所 | D19: 02管理岗位 | E19: 184 | F19: 61.33 | G19: 36.80 | H19: 82.60 | I19: 33.04 | J19: 69.84 | K19: 1 | L19: 进入体检
A20: 陈绍昕 | B20: 1152019502016 | C20: 021市殡葬管理所 | D20: 02管理岗位 | E20: 184 | F20: 61.33 | G20: 36.80 | H20: 82.20 | I20: 32.88 | J20: 69.68 | K20: 2
A21: 郭人监 | B21: 1152018901802 | C21: 021市殡葬管理所 | D21: 02管理岗位 | E21: 177.5 | F21: 59.17 | G21: 35.50 | H21: 81.60 | I21: 32.64 | J21: 68.14 | K21: 3
A22: 汪小会 | B22: 1152019901621 | C22: 021市殡葬管理所 | D22: 03管理岗位 | E22: 197.5 | F22: 65.83 | G22: 39.50 | H22: 83.00 | I22: 33.20 | J22: 72.70 | K22: 1 | L22: 进入体检
A23: 谢国文 | B23: 1152012901710 | C23: 021市殡葬管理所 | D23: 03管理岗位 | E23: 196.5 | F23: 65.50 | G23: 39.30 | H23: 82.40 | I23: 32.96 | J23: 72.26 | K23: 2
A24: 唐娇龙 | B24: 1152011202023 | C24: 021市殡葬管理所 | D24: 03管理岗位 | E24: 195.5 | F24: 65.17 | G24: 39.10 | H24: 82.20 | I24: 32.88 | J24: 71.98 | K24: 3
A25: 张世煜 | B25: 1152016105013 | C25: 022市慈善总会办公室 | D25: 01管理岗位 | E25: 201 | F25: =E25/3 -> 67.00 | G25: =F25*0.6 -> 40.20 | H25: 85.40 | I25: =H25*0.4 -> 34.16 | J25: =G25+I25 -> 74.36 | K25: 1 | L25: 进入体检
A26: 段清龙 | B26: 1152016104710 | C26: 022市慈善总会办公室 | D26: 01管理岗位 | E26: 201 | F26: 67.00 | G26: 40.20 | H26: 80.80 | I26: 32.32 | J26: 72.52 | K26: 2
A27: 王旭东 | B27: 1152019000413 | C27: 022市慈善总会办公室 | D27: 01管理岗位 | E27: 199 | F27: 66.33 | G27: 39.80 | H27: 76.60 | I27: 30.64 | J27: 70.44 | K27: 3
A28: 王成 | B28: 1152019201920 | C28: 024市社会工作指导中心 | D28: 01管理岗位 | E28: 189 | F28: =E28/3 -> 63.00 | G28: =F28*0.6 -> 37.80 | H28: 79.40 | I28: =H28*0.4 -> 31.76 | J28: =G28+I28 -> 69.56 | K28: 1 | L28: 进入体检
A29: 张莉 | B29: 1152019002101 | C29: 024市社会工作指导中心 | D29: 01管理岗位 | E29: 194 | F29: 64.67 | G29: 38.80 | H29: 73.80 | I29: 29.52 | J29: 68.32 | K29: 2
A30: 郑镕佳 | B30: 1152018603514 | C30: 025市涉外婚姻收养登记服务中心 | D30: 01管理岗位 | E30: 204.5 | F30: 68.17 | G30: 40.90 | H30: 85.20 | I30: 34.08 | J30: 74.98 | K30: 1 | L30: 进入体检
A31: 张鑫莉 | B31: 1152018600115 | C31: 025市涉外婚姻收养登记服务中心 | D31: 01管理岗位 | E31: 196.5 | F31: 65.50 | G31: 39.30 | H31: 78.60 | I31: 31.44 | J31: 70.74 | K31: 2
A32: 杨鑫 | B32: 1152016100812 | C32: 025市涉外婚姻收养登记服务中心 | D32: 01管理岗位 | E32: 188 | F32: 62.67 | G32: 37.60 | H32: 77.20 | I32: 30.88 | J32: 68.48 | K32: 3
A33: 范隆显 | B33: 1152016201403 | C33: 025市涉外婚姻收养登记服务中心 | D33: 02管理岗位 | E33: 215 | F33: 71.67 | G33: 43.00 | H33: 81.60 | I33: 32.64 | J33: 75.64 | K33: 1 | L33: 进入体检
A34: 武熠明 | B34: 1152018902308 | C34: 025市涉外婚姻收养登记服务中心 | D34: 02管理岗位 | E34: 218.5 | F34: =E34/3 -> 72.83 | G34: =F34*0.6 -> 43.70 | H34: 缺考 | J34: =G34+I34 -> 43.70
A35: 高广 | B35: 1152016100906 | C35: 025市涉外婚姻收养登记服务中心 | D35: 02管理岗位 | E35: 213.5 | F35: 71.17 | G35: 42.70 | H35: 缺考 | J35: 42.70
A36: 符航 | B36: 1152019905205 | C36: 025市涉外婚姻收养登记服务中心 | D36: 03管理岗位 | E36: 191 | F36: =E36/3 -> 63.67 | G36: =F36*0.6 -> 38.20 | H36: 84.60 | I36: =H36*0.4 -> 33.84 | J36: =G36+I36 -> 72.04 | K36: 1 | L36: 进入体检
A37: 王原群 | B37: 1152018204910 | C37: 025市涉外婚姻收养登记服务中心 | D37: 03管理岗位 | E37: 192.5 | F37: =E37/3 -> 64.17 | G37: =F37*0.6 -> 38.50 | H37: 80.80 | I37: =H37*0.4 -> 32.32 | J37: =G37+I37 -> 70.82 | K37: 2
A38: 蒲霜霜 | B38: 1152019000220 | C38: 025市涉外婚姻收养登记服务中心 | D38: 03管理岗位 | E38: 201 | F38: 67.00 | G38: 40.20 | H38: 缺考 | J38: 40.20

Sheet Sheet2

Sheet Sheet3
